bitfinex/quotes_ETHUSD_20250213
["timestamp","ask_amount","ask_price","bid_price","bid_amount"]
[1739440954684,4.28427,2683.3,2682.8,7.2964118]
[1739440954925,3.72689,2683.2,2682.8,7.2964118]
[1739440955112,4.28434,2683.3,2682.8,7.2964118]
[1739440955684,4.28433,2683.3,2682.8,7.2964118]
[1739440956724,0.5575,2683.3,2682.8,7.2964118]
[1739440956924,0.5575,2683.3,2682.9,3.72731]
[1739440957224,6.0729,2683.4,2683.2,3.72675]
[1739440957458,6.0729,2683.4,2683.1,3.72701]
[1739440957763,0.7803,2683.9,2683.2,3.72677]
[1739440957995,3.72617,2683.8,2683.3,3.72666]
[1739440959081,0.7803,2683.9,2683.5,3.7264]
[1739440959228,0.55,2683.8,2683.3,1.10224618]
[1739440959428,0.55,2683.8,2683.7,3.72619]
[1739440960453,0.55,2683.8,2683.6,7.45258]
[1739440960658,0.55,2683.8,2683.6,3.72625]
[1739440960827,0.55,2683.8,2683.7,3.72619]
[1739440961265,0.7803,2683.9,2683.6,3.72625]
[1739440961466,1.445202,2684.0,2683.7,3.72619]
[1739440961629,1.445202,2684.0,2683.8,3.72606]
[1739440961829,5.83,2683.9,2683.7,3.72619]
[1739440962032,5.83,2683.9,2683.5,3.72636]
[1739440962787,5.83,2683.9,2683.6,3.72632]
[1739440964390,5.83,2683.9,2683.5,3.72636]
[1739440964594,5.83,2683.9,2683.5,7.45277]
[1739440964733,5.83,2683.9,2683.6,3.72631]
[1739440966399,5.83,2683.9,2683.5,3.72636]
[1739440966544,5.83,2683.9,2683.5,7.45275]
[1739440966896,5.83,2683.9,2683.6,3.72633]
[1739440967976,5.83,2683.9,2683.7,3.72613]
[1739440968134,5.83,2683.9,2683.7,7.45227]
[1739440968334,5.83,2683.9,2683.7,3.72613]
[1739440968571,5.83,2683.9,2683.8,3.72606]
[1739440969754,1.445202,2684.0,2683.8,3.72606]
[1739440969938,1.445202,2684.0,2683.9,3.72592]
[1739440970333,1.445202,2684.0,2683.6,0.8333]
[1739440970540,1.445202,2684.0,2683.8,3.726]
[1739440970776,1.445202,2684.0,2683.7,3.72606]
[1739440971075,1.445202,2684.0,2683.4,4.3890518]
[1739440971327,0.55,2683.9,2683.4,4.93978222]
[1739440971439,0.55,2683.9,2683.5,3.72644]
[1739440971639,0.7991,2683.8,2683.5,3.72644]
[1739440974074,0.7991,2683.8,2683.3,3.72666]
[1739440974075,0.7991,2683.8,2683.6,3.72633]
[1739440974285,0.7991,2683.8,2683.7,3.72619]
[1739440974451,0.7991,2683.8,2683.6,3.72626]
[1739440975141,0.7991,2683.8,2683.7,3.72619]
[1739440975373,6.0791,2683.8,2683.7,3.72619]
[1739440976666,5.28,2683.8,2683.7,3.72619]
[1739440976869,5.28,2683.8,2683.7,4.552655]
[1739440979206,6.725202,2684.0,2683.9,3.72592]
[1739440979684,6.725202,2684.0,2683.9,4.52102]
[1739440984523,1.445202,2684.0,2683.9,4.52102]
[1739440984818,1.445202,2684.0,2683.9,3.72592]
[1739440985313,1.445202,2684.0,2683.7,3.72607]
[1739440985622,1.445202,2684.0,2683.8,3.72605]
[1739440985996,1.445202,2684.0,2683.8,7.45203]
[1739440986196,1.995202,2684.0,2683.9,3.72592]
[1739440986428,1.445202,2684.0,2683.9,3.72592]
[1739440986817,1.445202,2684.0,2683.9,4.49582]
[1739440987135,1.445202,2684.0,2683.9,5.67490518]
[1739440988932,1.445202,2684.0,2683.9,4.49582]
[1739440989335,1.445202,2684.0,2683.9,3.72592]
[1739440996863,1.445202,2684.0,2683.9,4.47399611]
[1739440999610,1.445202,2684.0,2683.9,7.47399611]
[1739440999817,2e-06,2684.0,2683.9,11.80854791]
[1739441000033,5.28,2684.6,2684.5,4.49058]
[1739441000233,6.6476,2684.9,2684.8,3.72467]
[1739441000434,6.6476,2684.9,2684.5,4.3345518]
[1739441000435,6.6476,2684.9,2684.7,3.72478]
[1739441000650,6.6476,2684.9,2684.8,3.72467]
[1739441000853,5.83,2684.9,2684.8,3.72467]
[1739441001029,5.28,2684.9,2684.8,3.72467]
[1739441001987,5.28,2684.9,2684.7,3.72478]
[1739441002193,5.28,2684.9,2684.6,3.72493]
[1739441002767,5.28,2684.9,2684.5,3.72499]
[1739441002768,0.7996,2684.8,2684.5,3.72499]
[1739441004902,0.7996,2684.8,2684.4,3.72519]
[1739441005275,4.27482,2684.7,2684.2,7.2944318]
[1739441005476,0.8214,2684.5,2684.2,3.72538]
[1739441005707,0.8214,2684.5,2684.1,3.72562]
[1739441006012,0.8214,2684.5,2684.2,3.7255]
[1739441006375,1.3714,2684.5,2684.4,3.72522]
[1739441007402,1.3714,2684.5,2684.3,3.72534]
[1739441007576,1.3714,2684.5,2684.4,3.72522]
[1739441007775,1.3714,2684.5,2684.4,4.07225022]
[1739441008003,0.55,2684.5,2684.4,4.07225022]
[1739441008313,5.28,2684.6,2684.5,3.72508]
[1739441008873,5.28,2684.6,2684.5,7.2941318]
[1739441009104,5.28,2684.6,2684.5,8.509019]
[1739441009512,5.28,2684.6,2684.5,8.85604922]
[1739441009813,5.28,2684.6,2684.5,9.20299025]
[1739441010394,0.272,2684.9,2684.8,3.72467]
[1739441011417,0.272,2684.9,2684.8,4.07170022]
[1739441012285,2.3285,2685.1,2684.9,3.72446]
[1739441012481,2.3285,2685.1,2684.9,3.72453]
[1739441012681,2.3285,2685.1,2684.9,3.72446]
[1739441013306,2.3285,2685.1,2685.0,3.72439]
[1739441014325,2.3285,2685.1,2684.9,4.9390762]
[1739441014816,2.3285,2685.1,2684.9,1.2145862]
[1739441015027,2.3285,2685.1,2684.8,7.2936318]
[1739441016624,2.3285,2685.1,2684.8,3.5690518]
[1739441016822,2.3285,2685.1,2684.9,3.72451]
[1739441017528,2.3285,2685.1,2684.9,3.72446]
[1739441017828,2.3285,2685.1,2684.9,7.44892]
[1739441018129,2.3285,2685.1,2684.9,3.72453]
[1739441018327,2.3285,2685.1,2685.0,3.72439]
[1739441018531,2.3285,2685.1,2685.0,4.54289]
[1739441019822,2.3285,2685.1,2685.0,7.88936]
[1739441020127,2.3285,2685.1,2685.0,8.23584314]
[1739441023224,2.3285,2685.1,2685.0,0.69295314]
[1739441023859,6.05275,2685.1,2685.0,0.69295314]
[1739441024071,3.1061,2685.1,2685.0,0.34647]
[1739441024355,7.38785,2685.1,2684.9,0.34648314]
[1739441024508,0.55,2685.0,2684.9,0.34648314]
[1739441025414,0.55,2685.0,2684.9,4.07101314]
[1739441025732,0.55,2685.0,2684.9,3.72453]
[1739441026420,0.55,2685.0,2684.8,3.72456]
[1739441027152,0.55,2685.0,2684.8,3.7246]
[1739441027738,0.55,2685.0,2684.6,4.53638]
[1739441028065,0.55,2685.0,2684.6,3.72488]
[1739441028534,0.55,2685.0,2684.7,3.7248]
[1739441028867,0.55,2685.0,2684.7,4.07154456]
[1739441029164,0.55,2685.0,2684.7,0.34674456]
[1739441029566,0.793,2684.9,2684.7,0.34674456]
[1739441030753,0.793,2684.9,2684.6,3.72493]
[1739441031558,0.793,2684.9,2684.6,3.72486]
[1739441031930,0.793,2684.9,2684.5,3.5690518]
[1739441032157,0.793,2684.9,2684.6,3.72487]
[1739441032543,0.793,2684.9,2684.6,4.07175282]
[1739441033328,0.793,2684.9,2684.7,4.07167257]
[1739441033534,0.793,2684.9,2684.7,0.34688257]
[1739441033975,0.793,2684.9,2684.8,3.72467]
[1739441034145,0.55,2685.0,2684.8,3.72467]
[1739441034661,8.3912,2685.1,2684.8,3.72466]
[1739441034971,8.3912,2685.1,2684.8,3.72459]
[1739441035582,12.11549,2685.1,2684.6,4.53253]
[1739441035898,3.7244,2685.0,2684.6,0.8076]
[1739441036073,3.7244,2685.0,2684.6,4.53253]
[1739441036280,7.4489,2685.0,2684.5,7.2940118]
[1739441036666,3.7244,2685.0,2684.5,7.2940118]
[1739441036865,0.7843,2684.8,2684.5,7.2940118]
[1739441037259,0.7843,2684.8,2684.6,3.72488]
[1739441037466,0.7843,2684.8,2684.5,3.5690518]
[1739441037692,0.7843,2684.8,2684.6,0.34702391]
[1739441038308,0.7843,2684.8,2684.6,0.69411449]
[1739441039299,0.7843,2684.8,2684.7,0.34702391]
[1739441039675,0.7843,2684.8,2684.7,0.69411449]
[1739441040775,6.0643,2684.8,2684.7,0.69411449]
[1739441045317,6.0643,2684.8,2684.7,0.34709058]
[1739441045506,6.0643,2684.8,2684.7,3.72481]
[1739441045823,5.28,2684.8,2684.7,3.72481]
[1739441046002,5.28,2684.8,2684.7,5.28464138]
[1739441046412,5.28,2684.8,2684.7,0.34709314]
[1739441046781,3.72446,2685.0,2684.7,0.34709314]
[1739441047496,3.72446,2685.0,2684.7,0.69418372]
[1739441048124,5.04423,2684.9,2684.8,0.34709314]
[1739441049895,5.05173,2684.9,2684.8,0.34709314]
[1739441050097,5.05644,2684.6,2684.5,0.69429256]
[1739441051023,5.07144,2684.6,2684.5,0.69429256]
[1739441051221,5.07144,2684.6,2684.5,0.34709314]
[1739441051539,3.73306,2684.2,2684.0,0.69429256]
[1739441051891,0.825,2684.3,2684.0,0.69429256]
[1739441052314,0.825,2684.3,2684.0,1.120627]
[1739441052626,4.55038,2684.3,2684.0,0.69429256]
[1739441052786,0.825,2684.3,2684.1,0.34719942]
[1739441053831,0.825,2684.3,2684.1,4.41992256]
[1739441053998,1.3805,2684.5,2684.1,4.41992256]
[1739441054334,5.10558,2684.5,2684.1,4.41992256]
[1739441054633,5.10558,2684.5,2684.2,0.34719942]
[1739441055349,0.7822,2684.2,2684.1,2.56e-06]
[1739441055487,7.5625,2684.2,2684.1,2.56e-06]
[1739441055687,8.95390714,2684.2,2684.1,2.56e-06]
[1739441056273,0.8285,2683.4,2682.8,4.3296518]
[1739441056549,3.72692,2683.2,2682.8,4.3296518]
[1739441056691,3.72692,2683.2,2682.8,0.7606]
[1739441057091,3.72709,2683.1,2682.8,0.7606]
[1739441057327,3.72709,2683.1,2682.6,4.48573]
[1739441058105,3.72709,2683.1,2682.6,5.66399918]
[1739441059496,7.45423,2683.1,2682.6,5.66399918]
[1739441059692,3.72709,2683.1,2682.6,5.66399918]
[1739441059924,3.72709,2683.1,2682.8,0.74061645]
[1739441060336,9.00684,2683.3,2682.8,0.74061645]
[1739441060638,3.72695,2683.2,2682.8,0.74061645]
[1739441061212,3.72711,2683.1,2682.8,0.74061645]
[1739441061630,3.72689,2683.2,2682.8,0.74061645]
[1739441062333,9.00685,2683.3,2682.8,0.74061645]
[1739441062540,5.28,2683.3,2683.0,3.72708]
[1739441062723,5.28,2683.3,2683.1,3.72698]
[1739441063061,5.28,2683.3,2682.9,4.50694]
[1739441063388,5.28,2683.3,2682.9,0.7797]
[1739441063669,3.7269,2683.2,2682.9,0.7797]
[1739441063886,9.00675,2683.3,2682.9,0.7797]
[1739441064833,9.00677,2683.3,2682.9,0.7797]
[1739441065033,5.28,2683.3,2682.9,0.7797]
[1739441065769,9.00684,2683.3,2682.9,0.7797]
[1739441066562,5.28,2683.3,2682.9,0.7797]
[1739441066772,9.00682,2683.3,2682.9,0.7797]
[1739441068781,3.7269,2683.2,2682.9,0.7797]
[1739441069312,9.00683,2683.3,2682.9,0.7797]
[1739441069468,5.28,2683.3,2682.9,4.50689]
[1739441069668,5.28,2683.3,2682.9,8.23413]
[1739441069999,5.28,2683.3,2682.9,4.50689]
[1739441070159,5.28,2683.3,2683.0,3.72714]
[1739441070898,5.28,2683.3,2683.0,7.4542]
[1739441071077,5.28,2683.3,2683.0,3.72706]
[1739441071904,5.28,2683.3,2683.1,3.72689]
[1739441072104,5.28,2683.3,2683.0,3.72716]
[1739441072405,9.00676,2683.3,2682.9,4.5069]
[1739441073003,9.00676,2683.3,2682.9,8.23413]
[1739441073305,5.28,2683.3,2683.0,3.72709]
[1739441073509,5.28,2683.5,2683.0,3.72717]
[1739441073658,5.28,2683.5,2682.9,4.5069]
[1739441073859,5.28,2683.5,2683.2,3.72683]
[1739441074205,5.28,2683.5,2683.3,4.51325]
[1739441074405,5.28,2683.5,2683.2,3.72683]
[1739441074702,5.28,2683.5,2683.0,8.25731]
[1739441075001,3.72661,2683.4,2683.0,3.72703]
[1739441075173,5.28,2683.5,2682.8,5.25376645]
[1739441075378,3.72686,2683.3,2682.8,5.25376645]
[1739441077310,4.49863,2683.4,2683.0,3.72716]
[1739441077610,3.72685,2683.3,2682.8,5.25384645]
[1739441078400,3.72685,2683.3,2682.8,8.98120645]
[1739441078699,3.72685,2683.3,2682.8,8.98112645]
[1739441079022,3.72691,2683.2,2682.8,4.46796645]
[1739441079188,3.72691,2683.2,2682.8,0.74061645]
[1739441079394,3.72695,2683.2,2682.8,0.74061645]
[1739441081017,9.55675,2683.3,2682.8,0.74061645]
[1739441081325,5.83,2683.3,2682.9,3.72731]
[1739441081520,5.83,2683.3,2682.8,0.74061645]
[1739441081681,9.55684,2683.3,2682.8,4.46803645]
[1739441081880,9.55684,2683.3,2682.8,0.74061645]
[1739441082116,3.72707,2683.1,2682.8,0.74061645]
[1739441082322,0.7986,2683.0,2682.8,0.74061645]
[1739441082482,4.52578,2683.0,2682.6,0.7812]
[1739441082687,4.52578,2683.0,2682.4,7.4558]
[1739441082688,0.7986,2683.0,2682.5,3.0]
[1739441082913,0.55,2682.9,2682.4,0.8297]
[1739441083079,3.72752,2682.8,2682.4,3.72793]
[1739441083284,0.55,2682.9,2682.5,4.07543287]
[1739441083921,0.55,2682.9,2682.6,4.07552308]
[1739441084618,0.55,2682.9,2682.6,4.42318595]
[1739441084844,6.0786,2683.0,2682.6,0.69549595]
[1739441085022,5.28,2683.0,2682.7,4.5358]
[1739441085218,5.28,2683.0,2682.8,4.07504287]
[1739441086025,5.28,2683.0,2682.8,0.34766287]
[1739441086227,5.28,2683.0,2682.9,3.72731]
[1739441086633,5.28,2683.0,2682.9,0.69549595]
[1739441088410,5.28,2683.2,2682.9,0.69549595]
[1739441089345,5.28,2683.2,2682.9,4.42276595]
[1739441090126,5.28,2683.2,2683.0,0.69549595]
[1739441091050,9.00697,2683.2,2683.0,0.69549595]
[1739441091227,9.00697,2683.2,2683.0,0.34783308]
[1739441091424,5.28,2683.2,2683.0,0.34783308]
[1739441091781,9.00692,2683.2,2682.8,3.72743]
[1739441092652,5.28,2683.2,2682.8,3.72743]
[1739441093055,9.00689,2683.2,2682.7,8.26329]
[1739441093481,9.00689,2683.2,2682.8,3.72738]
[1739441093847,9.00689,2683.2,2682.9,0.34835225]
[1739441094364,9.00689,2683.2,2682.9,0.69674928]
[1739441095287,5.28,2683.2,2683.0,0.34835225]
[1739441095493,9.00694,2683.2,2683.0,0.34835225]
[1739441096202,9.00694,2683.2,2683.0,0.69674928]
[1739441096870,5.28,2683.2,2683.0,0.34839703]
[1739441097260,5.28,2683.2,2682.9,3.72724]
[1739441097483,5.28,2683.2,2682.8,3.72736]
[1739441097802,9.00689,2683.2,2682.8,3.72744]
[1739441098420,5.28,2683.2,2682.9,3.72728]
[1739441098718,5.28,2683.2,2682.8,3.72738]
[1739441099009,5.28,2683.2,2682.9,4.07579371]
[1739441099252,5.28,2683.2,2682.9,0.34853371]
[1739441100129,5.28,2683.2,2683.0,0.34853371]
[1739441100708,5.28,2683.2,2683.0,4.07569371]
[1739441100904,5.28,2683.2,2683.1,3.72703]
[1739441101288,5.28,2683.2,2683.0,4.07569371]
[1739441101488,5.28,2683.2,2683.1,0.34853371]
[1739441102415,5.28,2683.2,2683.1,4.07556371]
[1739441103222,5.28,2683.2,2683.1,4.88256371]
[1739441103418,5.28,2683.2,2683.1,1.15553371]
[1739441103590,5.28,2683.2,2683.1,0.34853371]
[1739441103792,6.0926,2683.2,2683.1,0.34853371]
[1739441103991,10.36949,2683.2,2683.1,0.34853371]
[1739441104874,10.37699,2683.2,2683.1,0.34853371]
[1739441105108,10.38449,2683.2,2683.1,0.34853371]
[1739441106005,3.72751,2682.8,2682.4,4.07652371]
[1739441106508,5.28,2682.9,2682.4,0.34853371]
[1739441106815,3.72751,2682.8,2682.4,0.34853371]
[1739441107237,0.7833,2682.6,2682.4,0.34853371]
[1739441107376,4.51108,2682.6,2682.5,0.34853371]
[1739441107751,5.06858,2682.6,2682.5,0.34853371]
[1739441108350,1.3408,2682.6,2682.5,0.34853371]
[1739441109181,0.55,2682.5,2682.3,0.5]
[1739441109881,4.27788,2682.5,2682.3,0.5]
[1739441110291,4.4954,2682.4,2682.3,0.5]
[1739441111016,9.7754,2682.4,2682.3,0.5]
[1739441111211,10.0474,2682.4,2682.3,0.5]
[1739441111424,3.73578,2682.2,2682.1,0.005]
[1739441111626,11.6945318,2682.2,2682.1,0.005]
[1739441111824,12.25743894,2682.2,2682.1,0.005]
[1739441112198,8.68838714,2682.2,2682.1,0.005]
[1739441112403,8.39748,2682.2,2682.1,0.005]
[1739441112710,5.39748,2682.2,2682.1,0.005]
[1739441115305,10.67748,2682.2,2682.1,0.005]
[1739441115737,6.9417,2682.2,2682.1,0.005]
[1739441115945,10.66998,2682.2,2682.1,0.005]
[1739441116244,4.27849,2682.1,2681.6,3.68401]
[1739441116462,5.83,2682.1,2681.7,3.72888]
[1739441116953,5.83,2682.1,2681.7,3.72897]
[1739441117097,5.28,2682.1,2681.7,3.72897]
[1739441117298,5.28,2682.1,2682.0,3.72856]
[1739441117494,0.7815,2682.5,2682.1,3.7284]
[1739441117495,5.28,2682.4,2682.1,3.7284]
[1739441118010,5.28,2682.4,2682.3,3.72814]
[1739441118224,5.28,2682.5,2682.3,3.72814]
[1739441118528,5.28,2682.5,2682.4,3.728]
[1739441118712,5.28,2682.9,2682.4,1.17976218]
[1739441118915,5.28,2683.0,2682.8,3.72735]
[1739441119111,5.28,2683.2,2682.9,3.72719]
[1739441119447,5.28,2683.2,2683.0,3.72716]
[1739441119644,5.28,2683.2,2682.9,3.72729]
[1739441119950,5.28,2683.2,2682.6,7.2966918]
[1739441120134,9.00697,2683.2,2682.7,3.72756]
[1739441120520,3.72711,2683.1,2682.6,4.4937472]
[1739441120736,9.00697,2683.2,2682.6,8.2213772]
[1739441120910,9.00697,2683.2,2682.6,8.1213772]
[1739441121259,9.00697,2683.2,2682.6,4.3937472]
[1739441121260,3.72712,2683.1,2682.6,4.3937472]
[1739441121425,9.00689,2683.2,2682.6,8.1214272]
[1739441121628,9.00689,2683.2,2682.7,3.72751]
[1739441121946,9.00691,2683.2,2682.7,0.88919272]
[1739441122244,3.72705,2683.1,2682.6,7.1967018]
[1739441122419,5.28,2683.2,2682.7,3.72758]
[1739441122619,5.28,2683.2,2682.8,3.72732]
[1739441122856,5.28,2683.2,2682.9,3.7273]
[1739441123428,5.28,2683.2,2682.8,3.72732]
[1739441123759,5.28,2683.2,2683.1,3.72703]
[1739441123925,0.272,2683.3,2683.1,3.72703]
[1739441124136,5.28,2683.4,2683.2,3.72686]
[1739441124507,5.28,2683.6,2683.2,3.72681]
[1739441124770,5.552,2683.7,2683.1,3.72703]
[1739441124974,0.55,2683.6,2683.1,3.72703]
[1739441125131,0.55,2683.6,2683.2,3.72689]
[1739441125313,0.55,2683.6,2683.3,3.72663]
[1739441126021,0.55,2683.6,2683.4,3.72659]
[1739441126297,5.552,2683.7,2683.5,4.3639518]
[1739441126298,5.28,2683.7,2683.5,4.3639518]
[1739441126573,5.91,2684.1,2683.5,4.3639518]
[1739441126574,6.182,2684.1,2683.5,4.3639518]
[1739441126738,6.182,2684.1,2683.7,3.72619]
[1739441126942,0.272,2684.1,2683.7,3.72619]
[1739441127679,3.72579,2684.0,2683.5,8.0902918]
[1739441127883,3.72579,2684.0,2683.5,4.3639518]
[1739441128022,3.72579,2684.0,2683.5,8.0903518]
[1739441128332,3.72631,2683.7,2683.2,4.53086]
[1739441128537,0.55,2683.7,2683.3,3.72674]
[1739441128766,0.55,2683.7,2683.0,0.8041]
[1739441128767,3.72662,2683.4,2683.0,0.8041]
[1739441128923,0.8052,2683.5,2682.6,3.5690518]
[1739441129122,3.72683,2683.3,2682.8,4.53154]
[1739441129321,3.72683,2683.3,2682.8,0.8041]
[1739441129551,3.72663,2683.4,2682.8,0.8041]
[1739441129864,3.72678,2683.3,2682.8,4.53154]
[1739441130336,3.72678,2683.3,2682.7,3.72746]
[1739441130337,3.7269,2683.2,2682.7,3.72755]
[1739441130536,3.7269,2683.2,2682.7,3.7275]
[1739441130744,3.7269,2683.2,2682.7,7.45501]
[1739441130944,3.7269,2683.2,2682.7,3.7275]
[1739441131124,0.55,2683.0,2682.6,4.54989]
[1739441131320,1.3819,2683.0,2682.6,4.54989]
[1739441131751,1.3819,2683.0,2682.3,3.5690518]
[1739441131752,1.6539,2683.0,2682.3,8.0519218]
[1739441131921,3.72753,2682.8,2682.3,8.0519218]
[1739441132357,7.45478,2682.9,2682.3,8.0519218]
[1739441132562,3.72747,2682.8,2682.3,8.0519218]
[1739441133050,3.72739,2682.9,2682.3,11.7799518]
[1739441133263,3.72739,2682.9,2682.3,8.0518818]
[1739441133433,3.72749,2682.8,2682.3,8.0518818]
[1739441134250,3.72769,2682.7,2682.3,4.3238518]
[1739441134550,0.55,2682.7,2682.1,4.54171]
[1739441134751,0.55,2682.7,2682.2,3.72818]
[1739441135072,0.55,2682.7,2682.1,4.54171]
[1739441135073,3.72773,2682.6,2682.1,4.54171]
[1739441135281,4.27749,2682.8,2682.2,3.72827]
[1739441135772,0.55,2682.8,2682.3,3.72813]
[1739441136072,1.1039,2683.0,2682.3,4.0232048]
[1739441136300,0.272,2683.0,2682.6,3.5690518]
[1739441136576,0.272,2683.0,2682.9,3.72731]
[1739441136772,0.272,2683.0,2682.9,4.55511]
[1739441137136,0.272,2683.0,2682.9,8.1241618]
[1739441137731,6.0584,2684.0,2682.9,5.58201098]
[1739441137936,6.3304,2684.0,2683.4,0.7899]
[1739441138131,6.3304,2684.0,2683.5,3.72636]
[1739441138132,10.05622,2684.0,2683.5,3.72636]
[1739441138349,10.05622,2684.0,2683.4,0.7899]
[1739441138577,3.72599,2683.9,2683.4,4.51651]
[1739441138877,3.72599,2683.9,2683.4,0.7899]
[1739441139474,3.72606,2683.8,2683.4,0.7899]
[1739441140162,3.72627,2683.7,2683.3,3.5690518]
[1739441140366,0.0075,2683.9,2683.3,3.72666]
[1739441140542,0.0075,2683.9,2683.1,0.8329]
[1739441140543,3.72606,2683.8,2683.4,3.72659]
[1739441140934,3.72606,2683.8,2683.1,4.55983]
[1739441141277,3.72627,2683.7,2683.2,3.72682]
[1739441141638,0.55,2683.6,2683.2,3.7268]
[1739441141899,5.83,2683.6,2683.1,0.8329]
[1739441142077,0.55,2683.4,2682.9,3.7272]
[1739441142267,5.83,2683.4,2682.9,3.7272]
[1739441142780,9.55671,2683.4,2682.9,3.72721]
[1739441143075,0.5575,2683.3,2682.6,0.7649]
[1739441143242,4.27713,2683.1,2682.6,0.7649]
[1739441143439,3.72727,2683.0,2682.5,3.72784]
[1739441143855,4.47837,2683.0,2682.5,3.72784]
[1739441144041,0.55,2683.2,2682.8,3.72742]
[1739441144240,0.55,2683.2,2682.9,3.72729]
[1739441144482,5.28,2683.4,2682.9,3.72724]
[1739441144688,5.28,2683.4,2683.0,3.72706]
[1739441144982,5.552,2683.4,2683.3,3.72675]
[1739441145556,0.7597,2684.0,2683.4,3.72647]
[1739441145759,0.272,2683.8,2683.4,3.72647]
[1739441145957,0.272,2683.8,2683.5,3.72646]
[1739441146893,6.0397,2684.0,2683.6,3.7263]
[1739441147068,0.272,2683.8,2683.6,3.7263]
[1739441147274,0.822,2683.9,2683.7,3.72612]
[1739441147444,0.822,2683.9,2683.5,4.55436]
[1739441147845,0.822,2683.9,2683.1,0.8279]
[1739441148045,3.72629,2683.7,2683.2,3.72682]
[1739441148271,3.72647,2683.5,2683.1,4.55493]
[1739441148881,3.72667,2683.4,2683.0,3.5690518]
[1739441149084,3.72667,2683.4,2682.9,3.72723]
[1739441149318,0.55,2683.4,2682.9,3.72723]
[1739441149492,0.55,2683.4,2683.1,3.72702]
[1739441150125,5.28,2683.5,2683.2,3.72677]
[1739441150274,5.28,2683.5,2683.3,3.72673]
[1739441150478,5.28,2683.5,2683.0,7.2961918]
[1739441150673,5.28,2683.5,2683.2,3.72688]
[1739441151113,9.00651,2683.5,2683.0,7.2961918]
[1739441151304,0.55,2683.4,2683.0,7.2961918]
[1739441151816,5.28,2683.5,2683.0,3.5690518]
[1739441152192,5.28,2683.5,2683.3,3.72667]
[1739441152391,5.28,2683.5,2683.4,3.72661]
[1739441152603,5.28,2683.5,2683.4,4.49821]
[1739441152815,5.552,2683.9,2683.7,3.7261]
[1739441153596,5.28,2683.9,2683.7,3.7261]
[1739441153810,5.552,2683.9,2683.7,3.7261]
[1739441154523,5.28,2683.9,2683.7,3.7261]
[1739441155721,5.28,2683.9,2683.8,3.72606]
[1739441156623,5.28,2684.1,2683.8,3.72606]
[1739441157480,5.28,2684.1,2683.9,3.72583]
[1739441157913,5.28,2684.1,2683.8,3.72606]
[1739441158116,5.28,2684.1,2684.0,3.72578]
[1739441158421,5.28,2684.1,2683.7,3.72618]
[1739441158922,9.00565,2684.1,2683.7,3.72618]
[1739441159685,5.28,2684.1,2683.6,3.5690518]
[1739441159887,5.28,2684.1,2683.7,3.72619]
[1739441160312,9.00566,2684.1,2683.7,3.72618]
[1739441160533,5.28,2684.1,2683.8,3.72595]
[1739441160933,5.28,2684.1,2683.9,3.72583]
[1739441161362,5.28,2684.1,2683.8,3.72595]
[1739441161497,9.00564,2684.1,2683.7,3.72617]
[1739441161858,3.72586,2684.0,2683.6,7.2953618]
[1739441162050,4.27601,2683.9,2683.4,6.72652]
[1739441162740,9.55601,2683.9,2683.5,3.72646]
[1739441162913,5.83,2683.9,2683.5,3.72646]
[1739441163116,5.83,2683.9,2683.7,3.72617]
[1739441164469,5.83,2683.9,2683.5,3.72637]
[1739441164746,5.83,2683.9,2683.6,3.72632]
[1739441165722,5.83,2683.9,2683.5,3.72637]
[1739441165952,5.83,2683.9,2683.7,3.72619]
[1739441166320,5.28,2683.9,2683.7,3.72612]
[1739441166514,5.28,2683.9,2683.8,3.72606]
[1739441166942,5.28,2683.9,2683.8,4.62956002]
[1739441167157,9.0051,2684.5,2683.8,4.62956002]
[1739441167468,0.272,2684.4,2683.8,3.72595]
[1739441167675,3.99729,2684.4,2683.9,3.72587]
[1739441167874,3.99729,2684.4,2684.0,3.72574]
[1739441168177,5.28,2684.5,2684.0,3.72578]
[1739441168359,0.272,2684.4,2684.0,3.72578]
[1739441168676,5.28,2684.5,2683.9,3.5690518]
[1739441168885,5.28,2684.5,2684.4,3.72522]
[1739441169027,0.272,2684.6,2684.4,3.72522]
[1739441169232,0.272,2684.6,2684.5,3.72508]
[1739441170965,2.7153501,2684.9,2684.2,3.5690518]
[1739441171164,6.7119001,2684.9,2684.4,3.7252]
[1739441171414,2.9873501,2684.9,2684.4,3.7252]
[1739441171718,2.9873501,2684.9,2684.4,3.72515]
[1739441172043,2.9873501,2684.9,2684.5,3.72507]
[1739441172180,2.9873501,2684.9,2684.5,7.45009]
[1739441172376,2.9873501,2684.9,2684.6,3.72494]
[1739441172621,2.2051501,2684.9,2684.6,3.72494]
[1739441172916,2.2051501,2684.9,2684.7,3.72472]
[1739441173595,1.9331501,2684.9,2684.7,3.72472]
[1739441174004,0.272,2685.0,2684.7,3.72472]
[1739441174183,0.272,2685.0,2684.5,8.0902918]
[1739441174184,8.1585,2685.1,2684.5,8.0902918]
[1739441174504,8.1585,2685.1,2684.5,8.0903118]
[1739441174505,3.99646,2685.0,2684.5,8.0903118]
[1739441174904,0.272,2685.0,2684.6,3.72489]
[1739441176104,3.99645,2685.0,2684.5,8.0903118]
[1739441176301,3.99645,2685.0,2684.6,3.72492]
[1739441176600,3.99645,2685.0,2684.5,8.0903118]
[1739441176980,0.272,2685.0,2684.6,3.72488]